bitfinex-derivatives/quotes_ETHF0:USTF0_20250410
["timestamp","ask_amount","ask_price","bid_price","bid_amount"]
[1744288558918,16.34181773,1604.5,1604.1,1.24745]
[1744288559122,1.2473,1604.4,1604.0,1.24757]
[1744288559417,9.6629,1604.4,1603.8,3.2078]
[1744288559616,19.19662425,1604.4,1603.8,3.2078]
[1744288559823,3.21373347,1604.3,1603.8,3.2078]
[1744288560119,10.0449,1604.2,1603.9,0.00935046]
[1744288560315,10.0449,1604.2,1603.9,1.25699046]
[1744288560510,0.00593347,1604.3,1604.0,3.2078]
[1744288560711,0.00593347,1604.3,1604.2,1.24745]
[1744288561015,0.00593347,1604.3,1603.9,3.21715046]
[1744288561211,9.53965772,1604.3,1603.9,3.21715046]
[1744288561407,10.0449,1604.2,1603.9,3.21715046]
[1744288561809,10.0449,1604.2,1603.9,0.00935046]
[1744288561810,19.57862425,1604.2,1603.9,0.00935046]
[1744288562013,10.0449,1604.2,1604.0,1.24756]
[1744288562215,0.00593347,1604.3,1604.2,1.24745]
[1744288562423,0.00593347,1604.3,1604.0,1.24757]
[1744288562424,10.78706772,1604.3,1604.0,1.24757]
[1744288562606,1.2476,1604.0,1603.9,0.00935046]
[1744288562811,3.11944,1603.8,1603.1,9.2271]
[1744288563016,1.24811,1603.4,1603.1,10.47538]
[1744288563215,13.2527,1603.7,1603.2,1.24822]
[1744288563409,22.78642425,1603.7,1603.1,12.34783]
[1744288563614,22.78642425,1603.7,1603.2,1.24817]
[1744288563817,4.45581,1603.5,1603.2,1.24821]
[1744288564114,9.9529,1603.4,1603.3,0.00935046]
[1744288564313,9.9529,1603.4,1602.5,3.2078]
[1744288564314,13.1607,1603.4,1602.5,3.2078]
[1744288564520,3.2078,1602.9,1602.7,1.2486]
[1744288564714,3.2078,1602.9,1602.6,1.24866]
[1744288564919,9.9529,1602.8,1602.3,3.2078]
[1744288565117,3.2078,1603.1,1602.6,1.24864]
[1744288565307,4.45629,1602.9,1602.4,9.98105955]
[1744288565513,0.00935046,1603.0,1602.6,3.1217]
[1744288565717,19.48662425,1603.1,1603.0,0.00388999]
[1744288565919,20.73492425,1603.1,1603.0,0.00388999]
[1744288566121,1.24866,1602.7,1602.3,1.24889]
[1744288566320,3.2078,1602.5,1601.9,14.26867451]
[1744288566519,3.2078,1602.1,1601.9,14.26867451]
[1744288566720,10.67206,1602.0,1601.9,14.26867451]
[1744288567225,25.1925438,1602.0,1601.9,14.26867451]
[1744288567721,25.1925438,1602.0,1601.5,20.36033164]
[1744288567722,9.4229,1602.0,1601.5,20.36033164]
[1744288567914,0.00935046,1602.1,1602.0,1.24916]
[1744288568117,3.2078,1602.3,1602.1,0.00388999]
[1744288568518,4.9047,1602.6,1602.3,1.25277999]
[1744288568825,4.9047,1602.6,1602.3,0.00388999]
[1744288569217,4.45662,1602.5,1601.9,13.3657]
[1744288569418,3.2078,1602.5,1602.3,0.00935046]
[1744288569912,1.24885,1602.4,1602.3,0.00935046]
[1744288570122,1.24929,1601.9,1601.5,3.2078]
[1744288570320,8.2078,1602.5,1601.1,4.6765]
[1744288570321,3.2078,1602.1,1601.6,1.24945]
[1744288570521,3.2078,1602.3,1601.9,1.24918]
[1744288570720,1.24917,1602.0,1601.7,1.24934]
[1744288570921,0.01324045,1601.7,1601.6,1.24947]
[1744288571322,0.01324045,1601.6,1601.5,3.2078]
[1744288571522,0.01324045,1601.6,1601.5,0.00935046]
[1744288572028,0.00388999,1601.5,1601.4,1.24963]
[1744288572220,0.00388999,1601.5,1600.9,3.2078]
[1744288572416,10.1815,1601.6,1600.9,3.20391001]
[1744288572622,11.43102,1601.6,1600.9,3.20391001]
[1744288572818,10.1815,1601.6,1601.0,3.12485]
[1744288573027,10.1815,1601.6,1601.4,1.24959]
[1744288573222,0.00935046,1601.8,1601.3,3.2078]
[1744288573730,0.00935046,1601.8,1601.5,1.24954]
[1744288574021,0.00935046,1601.8,1601.6,1.24945]
[1744288574424,0.00935046,1601.8,1601.6,1.24942]
[1744288574627,0.00935046,1601.8,1601.7,1.24939]
[1744288575026,0.00935046,1601.8,1601.7,9.45719]
[1744288575327,0.00935046,1601.8,1601.5,4.45732]
[1744288575523,0.00935046,1601.8,1601.1,0.00935046]
[1744288575824,0.00935046,1601.8,1601.2,3.2078]
[1744288576030,0.00935046,1601.8,1601.5,1.24954]
[1744288576231,0.00935046,1601.8,1601.4,1.24957]
[1744288576431,0.00935046,1601.8,1601.2,3.2078]
[1744288576625,3.21715046,1601.8,1601.2,3.2078]
[1744288576825,1.24942,1601.7,1601.4,1.2496]
[1744288577037,1.24942,1601.7,1601.2,6.33226]
[1744288577038,9.4917,1601.7,1601.2,6.33226]
[1744288577330,0.00935046,1601.8,1601.7,1.24939]
[1744288577522,3.2078,1602.3,1601.9,3.123]
[1744288577724,3.2078,1602.0,1601.2,6.33225]
[1744288577928,3.2078,1602.0,1601.2,3.2078]
[1744288578233,1.24958,1601.5,1601.1,1.24979]
[1744288578530,1.24947,1601.7,1601.3,1.2497]
[1744288578734,0.00935046,1601.5,1601.1,0.00935046]
[1744288578930,1.24978,1601.2,1601.1,0.00935046]
[1744288579337,13.94375,1601.3,1601.1,0.00935046]
[1744288579531,12.694,1601.3,1601.1,0.00935046]
[1744288580131,12.694,1601.3,1601.1,1.25916046]
[1744288580341,9.4862,1601.3,1601.1,1.25916046]
[1744288580633,1.24978,1601.2,1601.1,0.00935046]
[1744288580833,1.25019,1600.7,1600.4,1.25039]
[1744288581039,1.25012,1600.8,1600.5,1.2503]
[1744288581233,1.25031,1600.6,1600.1,3.2078]
[1744288581436,1.25033,1600.5,1599.9,6.33463]
[1744288581643,3.2078,1600.3,1599.1,3.2078]
[1744288581833,3.2078,1599.9,1599.5,3.2078]
[1744288582036,9.6605,1599.8,1599.5,0.00935046]
[1744288582339,0.00935046,1599.9,1599.8,1.25088]
[1744288582531,0.00935046,1599.9,1599.5,0.00935046]
[1744288582732,1.26018046,1599.9,1599.5,0.00935046]
[1744288582933,9.6605,1599.8,1599.6,1.25099]
[1744288583135,9.6605,1599.8,1599.5,0.00935046]
[1744288583334,0.00935046,1599.9,1599.8,1.25088]
[1744288583545,1.25091,1599.8,1599.5,0.00935046]
[1744288583737,9.6605,1599.7,1599.6,1.25103]
[1744288583931,3.12613,1600.4,1599.6,1.25103]
[1744288583932,3.2078,1600.7,1599.6,3.2078]
[1744288584135,3.2078,1600.5,1600.0,1.25072]
[1744288584336,4.45813,1600.5,1600.1,1.25062]
[1744288584536,3.2078,1600.5,1600.4,1.25041]
[1744288584838,3.2078,1601.1,1600.4,8.2078]
[1744288585037,3.2078,1601.1,1600.4,6.33376]
[1744288585237,0.00935046,1600.9,1600.7,1.25017]
[1744288585433,0.00935046,1600.9,1600.6,0.00935046]
[1744288585640,0.00935046,1600.9,1600.8,1.25009]
[1744288586037,3.2078,1601.7,1601.3,1.24967]
[1744288586344,1.24953,1601.6,1601.2,1.24974]
[1744288586545,1.24953,1601.6,1601.0,3.2078]
[1744288586744,3.2078,1601.7,1601.1,3.12466]
[1744288586938,3.2078,1601.7,1600.6,0.00935046]
[1744288586939,1.24973,1601.3,1600.6,3.75970046]
[1744288587145,3.2078,1601.4,1600.6,0.63415046]
[1744288587345,0.00935046,1601.1,1600.6,0.63415046]
[1744288587545,1.25014,1600.8,1600.6,0.00935046]
[1744288587739,12.12505046,1601.1,1600.7,1.25014]
[1744288588049,13.37494046,1601.1,1600.8,1.25005]
[1744288588253,12.12505046,1601.1,1600.6,0.00935046]
[1744288588748,13.37494046,1601.1,1600.8,1.25006]
[1744288588938,13.37494046,1601.1,1600.7,1.25014]
[1744288588939,1.24996,1601.0,1600.7,1.25014]
[1744288589251,0.00935046,1601.1,1600.6,0.00935046]
[1744288589643,0.00935046,1601.1,1600.9,1.25]
[1744288590145,3.21715046,1601.1,1600.6,11.05783046]
[1744288590351,9.1402,1601.0,1600.6,9.80765046]
[1744288590545,1.25015,1600.8,1600.6,9.80765046]
[1744288590746,10.39016,1601.0,1600.8,1.25008]
[1744288591043,0.00935046,1601.1,1601.0,1.24994]
[1744288591443,12.26346,1601.9,1601.0,14.3506]
[1744288591444,9.1402,1601.9,1601.0,14.3506]
[1744288591643,8.28,1602.0,1601.0,14.3506]
[1744288591644,3.2078,1602.0,1601.6,3.2078]
[1744288591843,3.2078,1602.0,1601.7,9.3506]
[1744288592045,9.1402,1601.9,1601.7,9.3506]
[1744288592248,9.1402,1601.9,1601.1,3.12462]
[1744288592449,9.1402,1601.9,1601.6,1.24945]
[1744288592651,9.1402,1601.9,1601.7,1.24937]
[1744288592847,9.1402,1601.9,1601.8,1.24931]
[1744288593154,0.00935046,1601.9,1601.8,1.24931]
[1744288593452,0.00935046,1601.9,1601.4,15.68242]
[1744288593453,0.00935046,1601.9,1601.7,10.55567]
[1744288593648,0.00935046,1601.9,1601.8,1.24931]
[1744288596352,0.00935046,1601.9,1601.7,9.3063]
[1744288596547,0.00935046,1601.9,1601.8,1.24931]
[1744288596962,0.00935046,1601.9,1601.7,9.3063]
[1744288597258,9.70055046,1601.9,1601.4,12.1676]
[1744288597451,0.00935046,1601.9,1601.8,1.24931]
[1744288597855,0.00935046,1601.9,1601.8,4.45711]
[1744288598057,0.00935046,1601.9,1601.8,1.24931]
[1744288598460,0.00935046,1601.9,1601.7,10.20914]
[1744288598652,0.00935046,1601.9,1601.8,1.24931]
[1744288598955,0.00935046,1601.9,1601.7,8.9598]
[1744288599159,1.25863046,1601.9,1601.6,1.24944]
[1744288599352,1.2494,1601.7,1601.5,8.9598]
[1744288599554,10.39794,1601.8,1601.5,10.20928]
[1744288599751,9.1486,1601.8,1601.7,1.24939]
[1744288599955,0.00935046,1601.9,1601.8,1.24931]
[1744288600358,0.00935046,1601.9,1601.8,4.45711]
[1744288600962,3.2078,1602.4,1601.8,8.2078]
[1744288601161,3.2078,1602.8,1602.4,0.01324045]
[1744288601360,3.2078,1602.8,1602.6,1.24865]
[1744288601659,3.19455955,1602.8,1602.7,10.99721]
[1744288601857,3.19455955,1602.8,1602.7,9.7486]
[1744288602057,9.44309955,1602.8,1602.5,1.24874]
[1744288602257,3.19455955,1602.8,1602.7,1.24861]
[1744288602663,3.19455955,1602.8,1602.7,10.65101]
[1744288602964,1.24861,1602.7,1602.6,0.00935046]
[1744288603165,9.2211,1602.7,1602.6,0.00935046]
[1744288603659,3.19455955,1602.8,1602.7,1.24861]
[1744288603865,1.25441347,1602.9,1602.7,9.4024]
[1744288604162,0.00593347,1602.9,1602.8,1.24854]
[1744288604662,1.24803,1603.5,1603.2,1.2482]
[1744288604969,3.2078,1603.6,1603.1,1.24825]
[1744288605258,1.24825,1603.2,1603.0,1.24833]
[1744288605465,1.2482,1603.3,1602.9,9.4024]
[1744288605668,1.2483,1603.2,1602.9,9.4024]
[1744288605853,3.2078,1603.1,1602.7,1.24859]
[1744288606163,10.48624,1603.1,1602.9,1.24844]
[1744288606364,3.2078,1603.3,1602.7,9.1741]
[1744288606863,4.45574,1603.6,1603.3,1.24807]
[1744288607066,9.2379,1603.7,1603.2,3.12057]
[1744288607361,4.45573,1603.6,1603.3,9.1741]
[1744288607561,3.2078,1603.6,1603.3,9.1741]
[1744288607768,9.2379,1603.5,1603.3,9.1741]
[1744288607968,3.2078,1603.6,1603.5,1.24799]
[1744288608167,12.4457,1603.8,1603.7,1.24783]
[1744288608564,13.69346,1603.8,1603.6,1.25721046]
[1744288608869,13.69351,1603.8,1603.6,1.25723046]
[1744288609063,18.69351,1603.8,1603.6,1.25723046]
[1744288609269,12.4457,1603.8,1603.7,1.24783]
[1744288609459,4.45545,1604.0,1603.6,0.00935046]
[1744288609663,3.2078,1604.0,1603.9,1.24768]
[1744288609971,4.45546,1604.0,1603.6,9.80335046]
[1744288610167,3.2078,1604.0,1603.6,0.00935046]
[1744288610358,9.1686,1603.9,1603.6,0.00935046]
[1744288610555,9.1686,1603.9,1603.8,1.24776]
[1744288610759,3.2078,1604.0,1603.9,1.24768]
[1744288610962,3.2078,1604.0,1603.7,9.794]
[1744288611169,9.1686,1603.9,1603.6,0.00935046]
[1744288611468,1.24783,1603.7,1603.6,0.00935046]
[1744288611674,4.45558,1603.8,1603.6,0.00935046]
[1744288611862,4.45562,1603.8,1603.6,0.00935046]
[1744288612162,3.2078,1604.2,1604.1,1.24752]
[1744288612468,13.91954,1604.4,1604.2,1.24744]
[1744288612666,12.6722,1604.4,1603.9,9.544]
[1744288612871,15.79048,1604.4,1603.9,9.544]
[1744288613163,3.2078,1604.4,1603.9,9.544]
[1744288613356,1.24738,1604.3,1604.1,1.24746]
[1744288613562,3.2078,1604.4,1603.9,15.87084]
[1744288613763,1.24719,1604.6,1604.4,1.24723]
[1744288613963,1.24713,1604.6,1604.5,9.544]
[1744288614970,1.24713,1604.6,1604.5,10.79121]
[1744288615363,1.24729,1604.5,1604.1,6.3266]
[1744288615560,9.008,1604.6,1604.3,1.24729]
[1744288615758,1.24737,1604.3,1604.2,9.2218]
[1744288616162,6.32584,1604.5,1603.7,8.3065]
[1744288616163,3.1183,1604.4,1603.7,3.2078]
[1744288616369,12.12625,1604.4,1603.9,9.2218]
[1744288616571,1.24754,1604.1,1604.0,1.24756]
[1744288616869,9.008,1604.4,1603.9,9.2218]
[1744288617172,1.2476,1604.0,1603.9,10.46944]
[1744288617563,1.24752,1604.1,1604.0,1.24757]
[1744288618062,1.24752,1604.1,1603.9,10.46943]
[1744288618264,3.2078,1604.6,1604.0,3.2078]
[1744288618458,1.24736,1604.4,1604.2,1.24743]
[1744288618762,1.24729,1604.5,1604.3,1.24732]
[1744288618964,11.1084,1604.7,1604.1,11.437]
[1744288619276,3.2078,1604.9,1604.7,1.24703]
[1744288619469,4.45462,1605.1,1604.9,1.24686]
[1744288619770,1.24673,1605.2,1605.0,1.24676]
[1744288619967,1.24673,1605.2,1605.1,8.2292]
[1744288620158,3.2078,1605.3,1605.1,8.2292]
[1744288620362,1.24665,1605.3,1605.1,9.47587]
[1744288620569,3.1161,1605.5,1605.1,9.47587]
[1744288620768,1.24667,1605.2,1605.1,8.2292]
[1744288620963,1.24682,1605.1,1604.5,3.2078]
[1744288621159,1.24682,1605.0,1604.9,8.5941]
[1744288621367,1.24673,1605.2,1604.9,8.5941]
[1744288621663,1.24645,1605.5,1605.1,3.11684]
[1744288621860,6.32465,1605.2,1604.6,3.21715046]
[1744288622168,1.24701,1604.8,1604.7,8.5941]
[1744288622369,8.3871,1605.1,1604.6,0.00935046]
[1744288622762,3.11707,1605.0,1604.6,0.00935046]
[1744288622967,1.24706,1604.7,1604.6,0.00935046]
[1744288623575,9.63416,1604.7,1604.6,0.00935046]
[1744288623771,1.24745,1604.2,1604.1,1.24751]
[1744288624078,1.24745,1604.2,1604.1,8.2918]
[1744288624869,3.11812,1604.5,1604.1,13.2918]
[1744288625169,1.24733,1604.4,1604.2,3.2078]
[1744288625373,1.24729,1604.4,1604.3,8.2918]
[1744288625573,1.24729,1604.4,1604.3,9.53917]
[1744288625773,3.21715046,1604.8,1604.3,13.2918]
[1744288625973,1.25635046,1604.8,1604.5,1.24714]
[1744288626172,1.24721,1604.5,1604.4,8.2918]
[1744288626670,0.00935046,1604.8,1604.4,8.2918]
[1744288626869,1.25639046,1604.8,1604.6,1.2471]
[1744288627179,0.00935046,1604.8,1604.7,4.45486]
[1744288627374,0.00935046,1604.8,1604.7,12.56326]
[1744288627582,1.24662,1605.3,1605.1,1.24672]
[1744288627775,3.2078,1605.3,1604.7,3.2078]
[1744288628073,3.2078,1604.9,1604.1,3.2078]
[1744288628379,11.7214,1605.2,1604.6,3.11779]
[1744288628571,12.96814,1605.2,1605.0,1.24678]
[1744288628769,4.45454,1605.2,1605.0,1.24678]
[1744288628969,3.2078,1605.2,1605.1,1.24675]
[1744288629177,1.24661,1605.3,1605.1,1.24675]
[1744288629375,1.24661,1605.3,1604.7,3.21715046]
[1744288629376,1.24682,1605.0,1604.7,3.21715046]
[1744288629672,5.0,1605.3,1604.7,3.21715046]
[1744288629673,1.2469,1604.9,1604.8,8.1084]
[1744288629975,3.2078,1605.0,1604.7,0.00935046]
[1744288630275,1.24698,1604.8,1604.7,0.00935046]
[1744288630479,4.45478,1604.8,1604.7,0.00935046]
[1744288630880,9.45478,1604.8,1604.7,0.00935046]
[1744288631277,4.45478,1604.8,1604.7,0.00935046]
[1744288631478,1.24698,1604.8,1604.7,0.00935046]
[1744288631881,6.24698,1604.8,1604.7,0.00935046]
[1744288632381,9.45478,1604.8,1604.7,0.00935046]
[1744288633176,9.45478,1604.8,1604.0,3.11898]
[1744288633177,8.2078,1604.8,1604.2,3.2078]
[1744288633384,1.24718,1604.6,1604.5,1.24719]
[1744288633582,9.60896,1604.7,1604.6,1.24713]
[1744288633780,8.3619,1604.7,1604.0,3.11889]
[1744288633975,3.11843,1604.3,1603.9,1.24762]
[1744288634294,14.68834,1604.2,1603.7,8.0098]
[1744288634483,1.24757,1604.1,1603.9,0.00935046]
[1744288634679,8.3619,1604.1,1604.0,1.2476]
[1744288634979,3.2078,1604.4,1603.9,0.00935046]
[1744288635187,1.24741,1604.3,1604.2,1.24742]
[1744288635377,1.24752,1604.1,1604.0,8.0098]
[1744288635573,1.24754,1604.1,1603.9,1.25698046]
[1744288635777,1.2476,1604.0,1603.9,0.00935046]
[1744288636175,6.2476,1604.0,1603.9,0.00935046]
[1744288636371,14.282,1604.0,1603.9,0.00935046]
[1744288636680,9.282,1604.0,1603.9,0.00935046]
[1744288636882,8.0344,1604.0,1603.9,1.25703046]
[1744288637078,9.282,1604.0,1603.9,0.00935046]
[1744288637984,14.282,1604.0,1603.9,0.00935046]
[1744288638276,9.282,1604.0,1603.9,0.00935046]
[1744288638682,14.282,1604.0,1603.9,0.00935046]
[1744288638875,9.282,1604.0,1603.9,0.00935046]
[1744288640185,14.282,1604.0,1603.9,0.00935046]
[1744288640368,14.282,1604.0,1603.9,4.6e-07]
[1744288640575,9.282,1604.0,1603.9,4.6e-07]
[1744288641374,3.2078,1604.1,1603.9,4.6e-07]
[1744288641581,1.2476,1604.0,1603.9,4.6e-07]
[1744288642183,4.45539,1604.1,1603.9,1.24768046]
[1744288642383,3.2078,1604.3,1604.0,8.1495]
[1744288642582,1.24745,1604.2,1604.0,9.39704]
[1744288642783,1.24752,1604.1,1604.0,8.1495]
[1744288643188,1.2476,1604.0,1603.9,4.6e-07]
[1744288643382,12.373,1604.0,1603.9,4.6e-07]
[1744288644187,29.11,1604.0,1603.9,4.6e-07]
[1744288645186,34.0931,1604.0,1603.9,4.6e-07]
[1744288646088,29.0931,1604.0,1603.9,4.6e-07]
[1744288646588,12.373,1604.0,1603.9,4.6e-07]
[1744288646791,4.4554,1604.0,1603.9,1.24768046]
[1744288646989,4.4554,1604.0,1603.9,4.6e-07]
[1744288647790,4.4554,1604.0,1603.9,1.24768046]
[1744288647989,3.2078,1604.0,1603.9,1.24768046]
[1744288648180,7.2161905,1604.3,1604.2,1.24745]
[1744288648591,9.64219429,1604.5,1604.4,1.24729]
[1744288648781,2.76008429,1604.6,1604.2,5.0]
[1744288648987,6.23279,1605.4,1604.2,5.0]
[1744288648988,3.2078,1605.8,1605.1,1.24675]
[1744288649189,3.2078,1605.6,1605.1,1.24675]
[1744288649386,3.2078,1606.2,1605.1,6.24675]
[1744288649687,9.44995092,1606.1,1605.7,3.2078]
[1744288649885,1.2462,1605.8,1605.7,3.2078]
[1744288650079,28.2078,1605.8,1605.7,0.00935046]
[1744288650290,6.24215092,1605.8,1605.7,0.00935046]
[1744288650486,14.12175092,1605.8,1605.7,0.00935046]
[1744288650789,38.57575092,1605.8,1605.7,0.00935046]
[1744288650993,35.36795092,1605.8,1605.7,0.00935046]
[1744288651293,3.12442,1606.1,1605.7,1.25559046]
[1744288651294,1.25535,1606.1,1605.7,1.25559046]
[1744288651487,6.24215092,1606.0,1605.8,1.24616]
[1744288651690,9.44995092,1606.0,1605.7,0.00935046]
[1744288651892,6.24215092,1605.9,1605.7,0.00935046]
[1744288652186,14.61845092,1605.9,1605.7,0.00935046]
[1744288652388,7.48835092,1605.8,1605.7,0.00935046]
[1744288652590,19.07245092,1605.8,1605.7,0.00935046]
[1744288652789,37.82625092,1605.8,1605.7,0.00935046]
[1744288653097,3.21715,1606.1,1605.7,0.00935046]
[1744288653392,10.70531092,1606.1,1605.7,4.46341046]
[1744288653592,19.08161092,1606.1,1605.8,7.9963]
[1744288653793,31.59345,1606.1,1605.8,7.9963]
[1744288653997,14.62780092,1606.1,1605.8,7.9963]
[1744288654189,0.00935,1606.1,1606.0,1.24605]
[1744288654495,0.00935,1606.1,1606.0,9.78385]
[1744288654698,26.25150092,1606.1,1605.7,4.46339046]
[1744288654886,6.25150092,1606.1,1605.7,3.21715046]
[1744288655088,6.25150092,1606.1,1606.0,1.24605]
[1744288655285,6.25150092,1606.1,1605.9,1.24609]
[1744288655492,6.25150092,1606.1,1606.0,8.5378]
[1744288655688,0.00935,1606.1,1606.0,8.5378]
[1744288656194,6.25150092,1606.1,1605.7,3.21715046]
[1744288656396,0.00935,1606.1,1605.8,8.5378]
[1744288656696,6.24215092,1606.0,1605.8,9.78396]
[1744288657398,6.24215092,1606.0,1605.8,8.5378]
[1744288657594,1.24612,1605.9,1605.8,8.5378]
[1744288658092,8.07405,1606.1,1605.7,0.00935046]
[1744288658293,0.00935,1606.1,1606.0,4.45385]
[1744288658691,26.25150092,1606.1,1606.0,4.45385]
[1744288658896,26.25150092,1606.1,1605.9,1.24611]
[1744288659090,27.49748092,1606.1,1605.9,9.25531]
[1744288659296,7.48820092,1606.0,1605.8,4.45396]
[1744288659500,6.24215092,1606.0,1605.9,1.24612]
[1744288659796,7.48823092,1606.0,1605.7,11.22635046]
[1744288659997,4.46314,1606.1,1605.9,1.24609]
[1744288660186,6.24215092,1606.0,1605.7,11.22635046]
[1744288660389,0.00935,1606.1,1606.0,1.24605]
[1744288661400,0.00935,1606.1,1605.6,6.23152]
[1744288661401,1.24638,1605.6,1605.2,3.11649]
[1744288661697,3.2078,1605.5,1605.4,1.24647]
[1744288661894,3.2078,1605.5,1605.4,9.15417]
[1744288662100,3.2078,1605.5,1605.4,9.15421]
[1744288662302,12.36275,1605.8,1605.6,1.24634]
[1744288662502,6.24215092,1605.7,1605.4,7.9077]
[1744288662697,4.45416,1605.6,1605.5,0.00935046]
[1744288662998,1.24682,1605.0,1604.9,9.48879095]
[1744288663192,3.2078,1605.0,1604.9,10.73569095]
[1744288663399,9.44995092,1605.0,1604.9,9.48879095]
[1744288663896,9.44995092,1605.0,1604.9,10.73569095]
[1744288664304,0.00935046,1605.1,1605.0,1.24682]
[1744288664502,0.00935046,1605.1,1604.9,9.48879095]
[1744288664703,10.69677092,1605.0,1604.9,9.48879095]
[1744288664998,1.24698,1604.8,1604.7,6.77677255]
[1744288665190,4.45478,1604.8,1604.7,6.77677255]
[1744288665391,4.45478,1604.8,1604.5,18.96853599]
[1744288665392,1.24713,1604.6,1604.5,18.96853599]
[1744288665591,1.24749,1604.2,1604.0,1.24755]
[1744288665804,3.2078,1604.2,1604.1,1.24752]
[1744288666000,6.24215092,1604.2,1604.1,1.24752]
[1744288666207,9.44995092,1604.2,1604.0,0.00935046]
[1744288666503,6.24215092,1604.1,1604.0,1.25688046]
[1744288666708,6.24215092,1604.2,1604.0,0.00935046]
[1744288667005,10.69741092,1604.2,1604.0,0.00935046]
[1744288667198,0.00935046,1604.3,1604.0,0.00935046]
[1744288667399,6.25150138,1604.3,1604.2,1.24745]
[1744288667905,0.00935046,1604.3,1604.2,1.24745]
[1744288668598,8.45145046,1604.3,1604.2,1.24745]
[1744288669101,1.24746,1604.2,1604.0,0.00935046]
[1744288669305,8.4421,1604.1,1604.0,1.25695046]
[1744288669698,0.00935046,1604.3,1604.2,1.24745]
[1744288670206,0.00935046,1604.3,1604.2,6.24745]
[1744288670407,0.00935046,1604.3,1604.2,9.15655]
[1744288670706,0.00935046,1604.3,1604.0,0.00935046]
[1744288670902,6.24215092,1604.2,1604.1,1.24752]
[1744288671099,1.24752,1604.1,1604.0,0.00935046]
[1744288671303,9.44995092,1604.1,1604.0,0.00935046]
[1744288671502,18.80637092,1604.1,1604.0,0.00935046]
[1744288672005,17.55885092,1604.1,1604.0,0.00935046]
[1744288672302,14.35105092,1604.1,1604.0,0.00935046]
[1744288672502,14.35105092,1604.1,1604.0,1.25695046]
[1744288672707,15.59857092,1604.1,1604.0,0.00935046]
[1744288673011,14.35105092,1604.1,1604.0,1.25695046]
[1744288673311,14.35105092,1604.1,1604.0,0.00935046]
[1744288673312,15.59857092,1604.1,1604.0,0.00935046]
[1744288673607,14.35105092,1604.1,1604.0,1.25695046]
[1744288674305,0.00935046,1604.3,1604.2,1.24745]
[1744288674514,14.76670138,1604.3,1604.2,1.24745]
[1744288675008,22.88513138,1604.3,1604.0,0.00935046]
[1744288675210,3.2078,1604.1,1604.0,0.00935046]
[1744288675411,6.24215092,1604.2,1604.0,0.00935046]
[1744288675607,14.99045092,1604.1,1604.0,1.25692046]
[1744288675809,19.44577092,1604.1,1604.0,0.00935046]
[1744288676106,18.19825092,1604.1,1604.0,1.25695046]
[1744288676305,14.99045092,1604.1,1604.0,1.25695046]
[1744288676611,8.7483,1604.1,1604.0,1.25695046]
[1744288676914,0.00935046,1604.3,1604.2,1.24745]
[1744288677115,14.99980138,1604.3,1604.2,1.24745]
[1744288677308,14.99980138,1604.3,1604.2,6.24745]
[1744288677309,0.00935046,1604.3,1604.2,6.24745]
[1744288677718,0.00935046,1604.3,1604.2,1.24745]
[1744288678412,7.49889138,1604.3,1604.0,0.00935046]
[1744288678613,1.24752,1604.1,1604.0,0.00935046]
[1744288679116,1.24752,1604.1,1603.8,1.24772]
[1744288679117,1.24804,1603.5,1603.2,0.624]
[1744288679315,1.24804,1603.5,1603.1,0.624]
[1744288679316,3.2078,1603.5,1603.1,8.0034]
[1744288679510,18.17185092,1603.4,1603.0,1.24835]
[1744288679705,11.9297,1603.4,1603.0,1.24831]
[1744288680013,1.24832,1603.1,1602.8,1.24848]
[1744288680314,8.7219,1603.0,1602.9,1.24846]
[1744288680618,14.96405092,1603.0,1602.9,1.24846]
[1744288680909,8.7219,1603.0,1602.9,1.24846]
[1744288681113,0.00935046,1603.1,1603.0,1.24838]
[1744288681306,0.00935046,1603.1,1603.0,9.25178]
[1744288681513,0.00935046,1603.1,1603.0,17.45958]
[1744288682013,6.25150138,1603.1,1602.9,1.2484]
[1744288682210,17.55495092,1603.0,1602.8,20.22640645]
[1744288682411,17.55495092,1603.0,1602.8,18.97788645]
[1744288682608,6.24215092,1602.9,1602.8,20.22642645]
[1744288682808,8.105,1602.9,1602.8,20.22642645]
[1744288683217,0.00935046,1603.1,1603.0,1.24838]
[1744288683518,14.35650138,1603.1,1603.0,1.24838]
[1744288683717,8.11435046,1603.1,1603.0,1.24838]
[1744288684010,0.00935046,1603.1,1603.0,6.24838]
[1744288684317,6.25150138,1603.1,1603.0,1.24838]
[1744288684509,0.00935046,1603.1,1603.0,1.24838]
[1744288685409,0.00935046,1603.1,1603.0,6.24838]
[1744288685809,4.6e-07,1603.1,1603.0,14.70458]
[1744288686113,4.6e-07,1603.1,1603.0,1.24838]
[1744288686832,4.6e-07,1603.1,1603.0,9.45618]
[1744288687411,4.6e-07,1603.1,1603.0,4.45618]
[1744288687606,14.44995138,1603.1,1602.8,0.00935046]
[1744288687819,4.45626,1602.9,1602.8,0.00935046]
[1744288688019,3.12154,1602.7,1602.1,9.20946]
[1744288688220,3.2078,1602.4,1602.1,7.94715955]
[1744288688517,3.2078,1602.7,1602.6,1.24869]
[1744288688711,6.24215092,1602.7,1602.6,1.24869]
[1744288689109,6.24135092,1602.7,1602.6,1.24869]
[1744288691012,3.20780046,1603.1,1603.0,1.24838]
[1744288691209,1.24857,1602.8,1602.5,0.00935046]
[1744288691507,1.24904,1602.2,1601.9,1.24917]
[1744288691712,1.24895,1602.3,1601.8,3.12329]
[1744288692010,3.2078,1602.2,1601.8,8.70751001]
[1744288692214,7.9816,1602.1,1602.0,1.24911]
[1744288692415,14.20971093,1602.1,1602.0,1.24911]
[1744288692612,14.20971093,1602.1,1601.9,0.00623406]
[1744288692921,10.68507093,1602.0,1601.9,0.00623406]
[1744288693117,1.2497,1601.4,1600.9,22.17633599]
[1744288693315,7.9816,1601.3,1601.2,1.24978]
[1744288693612,7.9816,1601.3,1600.9,25.30131599]
[1744288693912,14.20971093,1601.3,1601.2,1.24978]
[1744288694115,3.2078,1601.7,1601.6,1.24947]
[1744288694418,9.43591093,1601.8,1601.6,1.24944]